{"text_format":"1","workbook":"xlsx","n_sheets":2,"sheets":["الإرشادات والإعداد"," 12 سبتمبر"],"not_rendered":{"charts":0,"images":0,"macros":1,"external_links":0,"defined_names":13,"comments":0,"pivot_tables":0},"unopened":[],"bounds":{"document_bytes":16777216,"sheet_cells":100000,"rows_first":2000,"rows_last":500,"rows_between":2000,"halvings":0,"cell_chars":16384,"cell_head_chars":4096},"cells_cut":0,"cells_raw":0,"read":"whole","date_system":"1900"}

{"sheet":"الإرشادات والإعداد","index":0,"n_rows":23,"n_cols":9,"rows_kept":23,"cut":false,"hidden":false,"merged":[[3,2,3,4],[5,2,5,4],[7,2,7,4],[9,2,9,4],[3,7,3,8],[5,7,5,8],[7,7,7,8],[9,7,9,8],[11,7,11,8],[4,7,4,8],[6,7,6,8],[8,7,8,8],[10,7,10,8]]}
[]
[null,"الإرشادات والإعداد"]
[]
[null,1,"في جدول \"الصفوف\" أدناه، اكتب أسماء الصفوف التي ترغب في تعقبها في هذا الجدول.",null,null,null,5,"أدخل تاريخ بدء للجدول الخاص بك في الخلية A5."]
[]
[null,2,"في جدول \"الأنشطة\" الموجود أدناه أيضاً، قم بتعديل نماذج الأنشطة لتتناسب مع احتياجاتك. ",null,null,null,6,"في الصف 4، استخدم القائمة المنسدلة لإضافة صفوف إلى الجدول. "]
[]
[null,3,"في الخلية I14، حدد عدد الصفوف التي تريد استخدامها لأنشطة الواجبات المنزلية لكل يوم.",null,null,null,7,"أسفل كل فئة، أضف الواجبات في العمود الواجبات."]
[]
[null,4,"في ورقة جدول مثل \"12 سبتمبر\"، أكمل من الخطوة 5 حتى الخطوة 9.",null,null,null,8,"قيّم إجمالي عدد الساعات اللازمة لكل واجب في عمود الساعات، المعرّف بأيقونة الساعة."]
[]
[null,null,null,null,null,null,9,"عندما تنتهي من الواجب، انقر نقراً مزدوجاً فوق العمود \"تم\"، المعرّف بعلامة اختيار، والمجاور للواجب."]
[]
[null,null,"الصفوف",null,"الأنشطة",null,null,"عدد الصفوف لكل يوم:",5]
[null,null,"الرياضيات 101",null,"مناقشة"]
[null,null,"اللغة الإنجليزية 105",null,"مختبر"]
[null,null,"اللغة الفرنسية 103",null,"محاضرة"]
[null,null,"العلوم 101",null,"اختبار"]
[null,null,"التاريخ 101",null,"قراءة"]
[null,null,null,null,"تفكير"]
[null,null,null,null,"ورقة بحث"]
[null,null,null,null,"مراجعة الواجب"]
[null,null,null,null,"مذاكرة"]

{"sheet":" 12 سبتمبر","index":1,"n_rows":103,"n_cols":24,"rows_kept":103,"cut":false,"hidden":false,"merged":[]}
[]
[null,"الواجب المنزلي"]
[]
[null,"أدخل تاريخ البدء","الإجمالي"," الصف:",null,"الرياضيات 101","الصف:",null,"اللغة الإنجليزية 105"," الصف:",null,"اللغة الفرنسية 103"," الصف:",null,"العلوم 101"," الصف:",null,null," الصف:",null,null," الصف:"]
[null,"2011-09-12",null,null,null,"الواجب",null,null,"الواجب",null,null,"الواجب",null,null,"الواجب",null,null,"الواجب",null,null,"الواجب",null,null,"الواجب"]
[]
[null,{"$f":"ScheduleDay","v":"2011-09-12"},{"$f":"DailyHourTotals","v":6.5},1,1.5,"القراءة",1,2,"مذاكرة",null,1,"القراءة",1,1,"اختبار"]
[null,{"$f":"ScheduleDay","v":""},{"$f":"DailyHourTotals","v":""},1,1,"مراجعة الواجب"]
[null,{"$f":"ScheduleDay","v":""},{"$f":"DailyHourTotals","v":""}]
[null,{"$f":"ScheduleDay","v":""},{"$f":"DailyHourTotals","v":""}]
[null,{"$f":"ScheduleDay","v":""},{"$f":"DailyHourTotals","v":""}]
[null,{"$f":"ScheduleDay","v":"2011-09-13"},{"$f":"DailyHourTotals","v":0}]
[null,{"$f":"ScheduleDay","v":""},{"$f":"DailyHourTotals","v":""}]
[null,{"$f":"ScheduleDay","v":""},{"$f":"DailyHourTotals","v":""}]
[null,{"$f":"ScheduleDay","v":""},{"$f":"DailyHourTotals","v":""}]
[null,{"$f":"ScheduleDay","v":""},{"$f":"DailyHourTotals","v":""}]
[null,{"$f":"ScheduleDay","v":"2011-09-14"},{"$f":"DailyHourTotals","v":0}]
[null,{"$f":"ScheduleDay","v":""},{"$f":"DailyHourTotals","v":""}]
[null,{"$f":"ScheduleDay","v":""},{"$f":"DailyHourTotals","v":""}]
[null,{"$f":"ScheduleDay","v":""},{"$f":"DailyHourTotals","v":""}]
[null,{"$f":"ScheduleDay","v":""},{"$f":"DailyHourTotals","v":""}]
[null,{"$f":"ScheduleDay","v":"2011-09-15"},{"$f":"DailyHourTotals","v":0}]
[null,{"$f":"ScheduleDay","v":""},{"$f":"DailyHourTotals","v":""}]
[null,{"$f":"ScheduleDay","v":""},{"$f":"DailyHourTotals","v":""}]
[null,{"$f":"ScheduleDay","v":""},{"$f":"DailyHourTotals","v":""}]
[null,{"$f":"ScheduleDay","v":""},{"$f":"DailyHourTotals","v":""}]
[null,{"$f":"ScheduleDay","v":"2011-09-16"},{"$f":"DailyHourTotals","v":0}]
[null,{"$f":"ScheduleDay","v":""},{"$f":"DailyHourTotals","v":""}]
[null,{"$f":"ScheduleDay","v":""},{"$f":"DailyHourTotals","v":""}]
[null,{"$f":"ScheduleDay","v":""},{"$f":"DailyHourTotals","v":""}]
[null,{"$f":"ScheduleDay","v":""},{"$f":"DailyHourTotals","v":""}]
[null,{"$f":"ScheduleDay","v":"2011-09-17"},{"$f":"DailyHourTotals","v":0}]
[null,{"$f":"ScheduleDay","v":""},{"$f":"DailyHourTotals","v":""}]
[null,{"$f":"ScheduleDay","v":""},{"$f":"DailyHourTotals","v":""}]
[null,{"$f":"ScheduleDay","v":""},{"$f":"DailyHourTotals","v":""}]
[null,{"$f":"ScheduleDay","v":""},{"$f":"DailyHourTotals","v":""}]
[null,{"$f":"ScheduleDay","v":"2011-09-18"},{"$f":"DailyHourTotals","v":0}]
[null,{"$f":"ScheduleDay","v":""},{"$f":"DailyHourTotals","v":""}]
[null,{"$f":"ScheduleDay","v":""},{"$f":"DailyHourTotals","v":""}]
[null,{"$f":"ScheduleDay","v":""},{"$f":"DailyHourTotals","v":""}]
[null,{"$f":"ScheduleDay","v":""},{"$f":"DailyHourTotals","v":""}]
[null,{"$f":"ScheduleDay","v":""},{"$f":"DailyHourTotals","v":""}]
[null,{"$f":"ScheduleDay","v":""},{"$f":"DailyHourTotals","v":""}]
[null,{"$f":"ScheduleDay","v":""},{"$f":"DailyHourTotals","v":""}]
[null,{"$f":"ScheduleDay","v":""},{"$f":"DailyHourTotals","v":""}]
[null,{"$f":"ScheduleDay","v":""},{"$f":"DailyHourTotals","v":""}]
[null,{"$f":"ScheduleDay","v":""},{"$f":"DailyHourTotals","v":""}]
[null,{"$f":"ScheduleDay","v":""},{"$f":"DailyHourTotals","v":""}]
[null,{"$f":"ScheduleDay","v":""},{"$f":"DailyHourTotals","v":""}]
[null,{"$f":"ScheduleDay","v":""},{"$f":"DailyHourTotals","v":""}]
[null,{"$f":"ScheduleDay","v":""},{"$f":"DailyHourTotals","v":""}]
[null,{"$f":"ScheduleDay","v":""},{"$f":"DailyHourTotals","v":""}]
[null,{"$f":"ScheduleDay","v":""},{"$f":"DailyHourTotals","v":""}]
[null,{"$f":"ScheduleDay","v":""},{"$f":"DailyHourTotals","v":""}]
[null,{"$f":"ScheduleDay","v":""},{"$f":"DailyHourTotals","v":""}]
[null,{"$f":"ScheduleDay","v":""},{"$f":"DailyHourTotals","v":""}]
[null,{"$f":"ScheduleDay","v":""},{"$f":"DailyHourTotals","v":""}]
[null,{"$f":"ScheduleDay","v":""},{"$f":"DailyHourTotals","v":""}]
[null,{"$f":"ScheduleDay","v":""},{"$f":"DailyHourTotals","v":""}]
[null,{"$f":"ScheduleDay","v":""},{"$f":"DailyHourTotals","v":""}]
[null,{"$f":"ScheduleDay","v":""},{"$f":"DailyHourTotals","v":""}]
[null,{"$f":"ScheduleDay","v":""},{"$f":"DailyHourTotals","v":""}]
[null,{"$f":"ScheduleDay","v":""},{"$f":"DailyHourTotals","v":""}]
[null,{"$f":"ScheduleDay","v":""},{"$f":"DailyHourTotals","v":""}]
[null,{"$f":"ScheduleDay","v":""},{"$f":"DailyHourTotals","v":""}]
[null,{"$f":"ScheduleDay","v":""},{"$f":"DailyHourTotals","v":""}]
[null,{"$f":"ScheduleDay","v":""},{"$f":"DailyHourTotals","v":""}]
[null,{"$f":"ScheduleDay","v":""},{"$f":"DailyHourTotals","v":""}]
[null,{"$f":"ScheduleDay","v":""},{"$f":"DailyHourTotals","v":""}]
[null,{"$f":"ScheduleDay","v":""},{"$f":"DailyHourTotals","v":""}]
[null,{"$f":"ScheduleDay","v":""},{"$f":"DailyHourTotals","v":""}]
[null,{"$f":"ScheduleDay","v":""},{"$f":"DailyHourTotals","v":""}]
[null,{"$f":"ScheduleDay","v":""},{"$f":"DailyHourTotals","v":""}]
[null,{"$f":"ScheduleDay","v":""},{"$f":"DailyHourTotals","v":""}]
[null,{"$f":"ScheduleDay","v":""},{"$f":"DailyHourTotals","v":""}]
[null,{"$f":"ScheduleDay","v":""},{"$f":"DailyHourTotals","v":""}]
[null,{"$f":"ScheduleDay","v":""},{"$f":"DailyHourTotals","v":""}]
[null,{"$f":"ScheduleDay","v":""},{"$f":"DailyHourTotals","v":""}]
[null,{"$f":"ScheduleDay","v":""},{"$f":"DailyHourTotals","v":""}]
[null,{"$f":"ScheduleDay","v":""},{"$f":"DailyHourTotals","v":""}]
[null,{"$f":"ScheduleDay","v":""},{"$f":"DailyHourTotals","v":""}]
[null,{"$f":"ScheduleDay","v":""},{"$f":"DailyHourTotals","v":""}]
[null,{"$f":"ScheduleDay","v":""},{"$f":"DailyHourTotals","v":""}]
[null,{"$f":"ScheduleDay","v":""},{"$f":"DailyHourTotals","v":""}]
[null,{"$f":"ScheduleDay","v":""},{"$f":"DailyHourTotals","v":""}]
[null,{"$f":"ScheduleDay","v":""},{"$f":"DailyHourTotals","v":""}]
[null,{"$f":"ScheduleDay","v":""},{"$f":"DailyHourTotals","v":""}]
[null,{"$f":"ScheduleDay","v":""},{"$f":"DailyHourTotals","v":""}]
[null,{"$f":"ScheduleDay","v":""},{"$f":"DailyHourTotals","v":""}]
[null,{"$f":"ScheduleDay","v":""},{"$f":"DailyHourTotals","v":""}]
[null,{"$f":"ScheduleDay","v":""},{"$f":"DailyHourTotals","v":""}]
[null,{"$f":"ScheduleDay","v":""},{"$f":"DailyHourTotals","v":""}]
[null,{"$f":"ScheduleDay","v":""},{"$f":"DailyHourTotals","v":""}]
[null,{"$f":"ScheduleDay","v":""},{"$f":"DailyHourTotals","v":""}]
[null,{"$f":"ScheduleDay","v":""},{"$f":"DailyHourTotals","v":""}]
[null,{"$f":"ScheduleDay","v":""},{"$f":"DailyHourTotals","v":""}]
[null,{"$f":"ScheduleDay","v":""},{"$f":"DailyHourTotals","v":""}]
[null,{"$f":"ScheduleDay","v":""},{"$f":"DailyHourTotals","v":""}]
[null,{"$f":"ScheduleDay","v":""},{"$f":"DailyHourTotals","v":""}]
[null,{"$f":"ScheduleDay","v":""},{"$f":"DailyHourTotals","v":""}]
[null,{"$f":"ScheduleDay","v":""},{"$f":"DailyHourTotals","v":""}]
[null,{"$f":"ScheduleDay","v":""},{"$f":"DailyHourTotals","v":""}]
[null,{"$f":"ScheduleDay","v":""},{"$f":"DailyHourTotals","v":""}]